bitfinex-derivatives/quotes_SOLF0:USTF0_20250310
["timestamp","ask_amount","ask_price","bid_price","bid_amount"]
[1741618094290,57.00423942,121.62,121.51,268.85687569]
[1741618094696,57.00423942,121.59,121.54,0.05387446]
[1741618094996,8.2247,121.6,121.54,65.28641388]
[1741618095195,57.00423942,121.63,121.53,60.5]
[1741618095384,57.00423942,121.61,121.49,60.46]
[1741618095588,57.00423942,121.61,121.56,0.05996177]
[1741618096190,57.00423942,121.65,121.56,0.05996177]
[1741618096402,60.48,121.72,121.6,57.00423942]
[1741618096601,117.48423942,121.72,121.6,57.00423942]
[1741618096796,57.00423942,121.74,121.62,57.00423942]
[1741618096990,57.00423942,121.72,121.65,0.05811036]
[1741618097191,57.00423942,121.7,121.65,0.05811036]
[1741618097394,57.00423942,121.7,121.6,60.4]
[1741618097593,57.00423942,121.72,121.66,0.0614006]
[1741618097895,60.38,121.73,121.66,0.0614006]
[1741618098095,4.3329,121.74,121.66,0.0614006]
[1741618098297,4.3329,121.74,121.67,57.00423942]
[1741618098508,57.00423942,121.71,121.6,57.00423942]
[1741618098803,57.00423942,121.69,121.57,462.69864126]
[1741618099100,57.00423942,121.66,121.53,117.62423942]
[1741618099399,60.58,121.68,121.53,60.62]
[1741618099400,57.00423942,121.62,121.53,60.62]
[1741618099603,57.00423942,121.6,121.52,133.93440184]
[1741618099794,57.00423942,121.61,121.52,133.93440184]
[1741618099990,68.7911,121.65,121.53,57.00423942]
[1741618100192,8.1111,121.65,121.57,57.00423942]
[1741618100499,65.11533942,121.65,121.55,0.05583276]
[1741618100807,57.00423942,121.63,121.53,133.93440184]
[1741618101002,68.9311,121.65,121.47,249.2298]
[1741618101003,57.00423942,121.57,121.48,60.82]
[1741618101308,57.00423942,121.55,121.47,133.93440184]
[1741618101505,57.00423942,121.53,121.44,60.82]
[1741618101697,57.00423942,121.53,121.41,61.08513942]
[1741618101698,57.00423942,121.51,121.41,57.00423942]
[1741618102200,8.6657,121.54,121.47,0.06008137]
[1741618102601,57.00423942,121.51,121.47,0.06008137]
[1741618102795,57.00423942,121.49,121.4,160.77124437]
[1741618102996,57.00423942,121.5,121.4,100.01124437]
[1741618103203,0.06008137,121.5,121.46,57.00423942]
[1741618103406,8.6657,121.54,121.47,60.82]
[1741618103706,8.6657,121.54,121.44,117.82423942]
[1741618103909,8.6657,121.54,121.46,57.00423942]
[1741618104094,0.05632574,121.52,121.49,0.0528313]
[1741618104910,8.2311,121.5,121.49,0.0528313]
[1741618105205,8.2311,121.5,121.35,271.54]
[1741618105206,57.00423942,121.47,121.36,133.93440184]
[1741618105705,57.00423942,121.47,121.34,62.32826108]
[1741618105706,57.00423942,121.45,121.34,1.64826108]
[1741618105906,57.00423942,121.41,121.34,1.64826108]
[1741618106102,57.00423942,121.43,121.34,1.64826108]
[1741618106304,57.00423942,121.43,121.32,78.24699346]
[1741618106503,8.2369,121.42,121.34,8.2414]
[1741618106699,60.7,121.43,121.33,57.00423942]
[1741618106898,57.00423942,121.41,121.32,78.24699346]
[1741618107299,4.2372,121.44,121.33,117.62423942]
[1741618107507,0.05955789,121.38,121.37,57.00423942]
[1741618107707,0.05955789,121.38,121.37,117.64423942]
[1741618107902,4.2372,121.44,121.37,60.64]
[1741618108104,57.00423942,121.43,121.36,0.06287837]
[1741618108310,0.05222069,121.39,121.36,0.06287837]
[1741618108505,57.00423942,121.43,121.34,1.64826108]
[1741618108708,0.05829732,121.39,121.38,7.951e-05]
[1741618109001,57.00423942,121.45,121.38,7.951e-05]
[1741618109195,117.76423942,121.45,121.38,7.951e-05]
[1741618109396,57.00423942,121.43,121.38,7.951e-05]
[1741618109597,332.4,121.45,121.38,7.951e-05]
[1741618109598,8.238,121.4,121.38,7.951e-05]
[1741618109800,57.00423942,121.43,121.38,7.951e-05]
[1741618110002,0.05441932,121.42,121.38,7.951e-05]
[1741618110203,4.01101932,121.42,121.38,7.951e-05]
[1741618110402,57.00423942,121.41,121.38,7.951e-05]
[1741618110604,57.00423942,121.39,121.25,117.66423942]
[1741618110813,57.00423942,121.34,121.23,57.00423942]
[1741618111004,3.9566,121.33,121.21,121.72453942]
[1741618111204,3.9566,121.33,121.22,62.0]
[1741618111701,8.2448,121.3,121.25,8.248]
[1741618111905,3.9566,121.33,121.25,57.00423942]
[1741618112403,3.9566,121.33,121.27,57.00423942]
[1741618112603,60.96083942,121.33,121.22,117.80423942]
[1741618112813,0.05506788,121.31,121.29,0.05640594]
[1741618113199,0.05506788,121.31,121.29,2.48]
[1741618113403,0.05506788,121.31,121.29,0.05306528]
[1741618114515,8.2446,121.3,121.29,0.05306528]
[1741618114812,0.05506788,121.31,121.29,0.05306528]
[1741618115006,8.2446,121.3,121.29,0.05306528]
[1741618115213,0.05506788,121.31,121.29,2.53306528]
[1741618115411,0.05506788,121.31,121.3,57.00423942]
[1741618115707,4.1401,121.38,121.3,57.00423942]
[1741618116017,8.1778,121.42,121.33,57.00423942]
[1741618116207,8.1778,121.42,121.35,57.00423942]
[1741618116511,61.35103942,121.47,121.37,57.00423942]
[1741618116711,4.3388,121.46,121.37,57.00423942]
[1741618116908,57.00423942,121.45,121.34,60.82]
[1741618117104,57.00423942,121.45,121.33,57.00423942]
[1741618117105,57.00423942,121.43,121.33,57.00423942]
[1741618117307,117.85793181,121.43,121.4,0.05663985]
[1741618117500,117.80423942,121.43,121.31,332.92033942]
[1741618117714,8.2394,121.38,121.33,8.2422]
[1741618117909,117.80423942,121.43,121.31,328.78423942]
[1741618118114,57.00423942,121.41,121.31,57.00423942]
[1741618118309,57.00423942,121.39,121.3,62.40880461]
[1741618118511,57.00423942,121.37,121.3,1.64880461]
[1741618118704,8.2419,121.34,121.33,0.05367449]
[1741618119014,0.05911576,121.36,121.26,60.7]
[1741618119217,57.00423942,121.35,121.26,60.7]
[1741618119414,69.3841,121.38,121.29,57.00423942]
[1741618119615,69.3841,121.38,121.27,57.00423942]
[1741618120116,0.0585507,121.34,121.31,0.06067426]
[1741618121303,0.0585507,121.34,121.32,8.2433]
[1741618121508,0.0585507,121.34,121.31,57.06491368]
[1741618121709,0.0585507,121.34,121.31,0.06067426]
[1741618122513,0.0585507,121.34,121.31,7.426e-05]
[1741618122817,57.00423942,121.33,121.31,7.426e-05]
[1741618123112,57.00423942,121.32,121.17,57.00423942]
[1741618123410,8.2515,121.2,121.16,146.18700184]
[1741618123626,60.58,121.27,121.16,194.93744126]
[1741618123917,8.2529,121.18,121.14,65.25953942]
[1741618124117,57.00423942,121.26,121.14,57.00423942]
[1741618124308,0.06184967,121.23,121.2,0.05866732]
[1741618124913,8.2501,121.22,121.2,0.05866732]
[1741618125216,0.06184967,121.23,121.2,0.05866732]
[1741618125607,0.06184967,121.23,121.14,57.00423942]
[1741618125806,0.06184967,121.23,121.13,4.1327]
[1741618126011,8.5207,121.25,121.2,57.00423942]
[1741618126012,4.3539,121.25,121.2,57.00423942]
[1741618126411,4.3539,121.25,121.17,60.42]
[1741618126613,64.733,121.27,121.18,57.00423942]
[1741618127109,0.06139814,121.22,121.2,0.06034478]
[1741618127309,0.00090992,121.22,121.2,57.0645842]
[1741618127510,57.00423942,121.3,121.2,57.0645842]
[1741618127706,57.00423942,121.3,121.2,0.06034478]
[1741618127923,57.00423942,121.3,121.18,61.15833942]
[1741618128618,0.05994229,121.25,121.23,7.127e-05]
[1741618128820,8.2487,121.24,121.23,7.127e-05]
[1741618129013,57.00423942,121.28,121.16,117.38423942]
[1741618129205,57.00423942,121.26,121.16,117.38423942]
[1741618129410,57.00423942,121.28,121.16,57.00423942]
[1741618129707,57.00423942,121.22,121.14,1.65098233]
[1741618129907,4.0546,121.21,121.14,1.65098233]
[1741618130407,8.2542,121.16,121.14,1.65098233]
[1741618130612,4.0546,121.21,121.14,1.65098233]
[1741618131008,4.0546,121.21,121.09,133.93440184]
[1741618131009,4.0546,121.21,121.16,0.06164098]
[1741618131218,0.06130111,121.19,121.16,0.06164098]
[1741618131414,8.2535,121.17,121.16,4.098e-05]
[1741618134826,8.2605,121.07,121.04,57.00423942]
[1741618135122,57.00423942,121.15,121.04,57.00423942]
[1741618135323,8.1325,121.14,121.03,280.8528]
[1741618135511,8.26,121.08,121.04,57.00423942]
[1741618135712,8.1325,121.14,121.04,57.00423942]
[1741618135918,8.2579,121.11,121.06,57.00423942]
[1741618136124,0.05332658,121.1,121.08,0.05984865]
[1741618136418,8.2552,121.15,121.08,173.96832749]
[1741618136629,4.0723,121.22,121.12,57.00423942]
[1741618136920,8.2572,121.12,121.1,57.00423942]
[1741618137317,61.11403942,121.21,121.11,8.257]
[1741618137513,4.1098,121.21,121.11,8.257]
[1741618137714,0.05431997,121.12,121.11,8.257]
[1741618137926,4.1098,121.21,121.11,61.08733942]
[1741618138226,4.1098,121.21,121.14,57.00423942]
[1741618138417,4.1098,121.21,121.11,4.0831]
[1741618138612,61.11403942,121.21,121.08,116.90423942]
[1741618139015,4.1098,121.21,121.12,65.26053942]
[1741618139219,0.05636896,121.16,121.13,0.05464153]
[1741618139423,0.05636896,121.16,121.14,119.00423942]
[1741618139623,8.2512,121.21,121.14,176.00847884]
[1741618139813,4.0602,121.25,121.17,57.00423942]
[1741618140021,8.3061,121.27,121.19,57.00423942]
[1741618140427,8.3061,121.27,121.18,59.92]
[1741618140628,57.00423942,121.25,121.15,57.00423942]
[1741618140926,59.92,121.24,121.15,57.00423942]
[1741618141114,59.98226876,121.24,121.21,0.06270141]
[1741618141315,8.3061,121.27,121.17,57.00423942]
[1741618141528,8.3061,121.27,121.19,57.00423942]
[1741618141830,8.2501,121.22,121.21,0.05982695]
[1741618142324,0.05276348,121.24,121.21,0.05982695]
[1741618142915,8.2501,121.22,121.21,2.695e-05]
[1741618145030,8.2497,121.23,121.21,2.695e-05]
[1741618145217,0.05276348,121.24,121.21,2.695e-05]
[1741618145630,8.2501,121.22,121.21,2.695e-05]
[1741618146234,12.6156,121.22,121.21,2.695e-05]
[1741618146529,4.3655,121.22,121.13,57.00423942]
[1741618146932,4.3655,121.22,121.13,65.26023942]
[1741618147127,4.3655,121.22,121.13,57.00423942]
[1741618147328,4.3655,121.22,121.15,57.00423942]
[1741618147832,0.05424008,121.2,121.17,0.05709075]
[1741618148236,0.05424008,121.2,121.17,57.06133017]
[1741618148528,0.05424008,121.2,121.17,0.05709075]
[1741618148729,8.2528,121.18,121.17,0.05709075]
[1741618149033,8.2528,121.18,121.17,9.075e-05]
[1741618149424,25.13241603,121.18,121.17,9.075e-05]
[1741618150121,27.61241603,121.18,121.17,9.075e-05]
[1741618150321,8.2593,121.09,121.06,4.1221]
[1741618150528,59.92,121.14,121.04,57.00423942]
[1741618150734,57.00423942,121.13,121.03,3.9634]
[1741618151029,8.2608,121.07,121.03,3.9634]
[1741618151419,16.87961603,121.12,121.03,3.9634]
[1741618151618,0.05447226,121.06,121.04,0.05732351]
[1741618151821,0.05447226,121.06,121.04,2.351e-05]
[1741618152034,272.28,121.07,120.97,4.1221]
[1741618152235,272.28,121.07,120.96,57.00423942]
[1741618152426,16.87961603,121.06,120.96,57.00423942]
[1741618152626,73.88385545,121.06,120.96,57.00423942]
[1741618152925,16.87961603,121.05,120.96,119.00423942]
[1741618153237,57.05715421,121.02,120.91,90.34286055]
[1741618153435,57.00423942,121.0,120.91,90.34286055]
[1741618153639,8.2705,120.92,120.91,90.34286055]
[1741618153931,57.00423942,120.97,120.85,4.111]
[1741618153932,59.94,120.95,120.85,4.111]
[1741618154126,4.0589,120.96,120.86,57.00423942]
[1741618154323,16.87961603,120.94,120.88,57.00423942]
[1741618154527,0.05508623,120.91,120.9,57.00423942]
[1741618154931,0.05508623,120.91,120.89,0.06278926]
[1741618155428,0.05508623,120.91,120.9,57.00423942]
[1741618155635,10.3816774,120.97,120.9,57.00423942]
[1741618155832,6.45770267,120.96,120.92,57.00423942]
[1741618156036,6.45770267,120.96,120.89,62.0]
[1741618156238,8.2739,120.88,120.81,8.2779]
[1741618156443,116.94423942,120.92,120.82,57.00423942]
[1741618156626,116.94423942,120.92,120.8,57.00423942]
[1741618156832,8.33247192,120.88,120.8,57.00423942]
[1741618157032,0.05907192,120.88,120.82,57.00423942]
[1741618157333,8.2754,120.85,120.8,57.00423942]
[1741618157532,21.06258007,120.91,120.8,57.00423942]
[1741618157840,57.00423942,120.9,120.78,57.00423942]
[1741618158226,0.06123969,120.87,120.84,0.06101991]
[1741618158935,8.2746,120.86,120.84,0.06101991]
[1741618159132,60.04123969,120.87,120.79,62.0]
[1741618159334,0.06123969,120.87,120.79,62.0]
[1741618159545,0.06123969,120.87,120.52,90.34286055]
[1741618159546,171.01271826,120.8,120.52,90.34286055]
[1741618159739,57.00423942,120.61,120.52,90.34286055]
[1741618160041,57.00423942,120.66,120.52,90.34286055]
[1741618160340,0.05418225,120.58,120.55,0.0576595]
[1741618160542,0.05418225,120.58,120.56,60.14]
[1741618160844,60.16,120.68,120.56,60.14]
[1741618161144,4.1737,120.74,120.6,57.00423942]
[1741618161345,57.00423942,120.72,120.61,60.14]
[1741618161641,4.1737,120.74,120.61,60.14]
[1741618161837,57.00423942,120.75,120.61,60.14]
[1741618162137,0.05411625,120.69,120.66,0.06285767]
[1741618162336,8.2877,120.67,120.66,0.06285767]
[1741618162531,57.00423942,120.69,120.6,272.68]
[1741618162728,57.00423942,120.66,120.57,60.06]
[1741618162931,8.2931,120.6,120.57,60.06]
[1741618163129,57.00423942,120.63,120.52,150.40286055]
[1741618163540,57.00423942,120.63,120.53,62.0]
[1741618163935,0.06353709,120.59,120.57,0.06240595]
[1741618166149,249.00423942,120.66,120.57,60.16240595]
[1741618166345,57.00423942,120.66,120.57,60.16240595]
[1741618166542,57.00423942,120.66,120.57,60.1]
[1741618167447,0.05963694,120.63,120.6,0.05786649]
[1741618168250,8.2918,120.61,120.6,0.05786649]
[1741618168542,57.00423942,120.62,120.51,272.92]
[1741618168747,0.05963694,120.63,120.51,272.92]
[1741618168748,57.00423942,120.6,120.51,272.92]
[1741618169247,57.00423942,120.6,120.52,62.0]
[1741618169435,57.00423942,120.6,120.51,272.92]
[1741618169837,0.0522208,120.57,120.55,0.06359156]
[1741618170349,8.2952,120.56,120.55,0.06359156]
[1741618170849,0.0522208,120.57,120.55,0.06359156]
[1741618172045,8.2952,120.56,120.55,0.06359156]
[1741618172446,0.0522208,120.57,120.48,62.0]
[1741618172649,8.2953,120.56,120.5,8.2992]
[1741618172850,57.00423942,120.58,120.48,62.0]
[1741618173251,57.00423942,120.58,120.48,70.3006]
[1741618173554,57.00423942,120.6,120.49,57.00423942]
[1741618173852,117.16423942,120.66,120.52,0.06295489]
[1741618174052,57.00423942,120.66,120.53,333.64]
[1741618174250,57.00423942,120.64,120.54,3.9807]
[1741618174553,57.00423942,120.68,120.56,57.00423942]
[1741618174750,8.2904,120.63,120.58,8.2938]
[1741618174950,0.06336599,120.63,120.61,0.06357335]
[1741618175343,0.06336599,120.63,120.56,57.00423942]
[1741618175549,60.24,120.69,120.61,0.06064841]
[1741618175750,60.24,120.69,120.6,390.72423942]
[1741618175944,8.2892,120.65,120.6,333.72]
[1741618176148,60.24,120.69,120.6,333.72]
[1741618176552,57.00423942,120.68,120.6,333.72]
[1741618176761,0.06233925,120.66,120.63,0.05838109]
[1741618178254,117.18423942,120.75,120.63,60.23838109]
[1741618178550,117.18423942,120.75,120.64,57.00423942]
[1741618179052,60.18,120.75,120.66,57.00423942]
[1741618179255,4.396,120.77,120.68,57.00423942]
[1741618179455,8.2827,120.75,120.7,8.2855]
[1741618179647,57.00423942,120.79,120.69,60.23873034]
[1741618179648,0.06360187,120.72,120.69,60.23873034]
[1741618180048,57.00423942,120.79,120.7,8.2852]
[1741618180251,0.06162425,120.72,120.69,60.23401506]
[1741618180453,60.18,120.8,120.7,57.00423942]
[1741618180856,61.37353942,120.81,120.7,57.00423942]
[1741618181166,8.2788,120.8,120.74,57.00423942]
[1741618181349,57.00423942,120.85,120.74,57.00423942]
[1741618181350,57.00423942,120.85,120.74,117.16423942]
[1741618181549,57.00423942,120.85,120.74,390.60423942]
[1741618181753,57.00423942,120.85,120.76,0.05907198]
[1741618182259,57.00423942,120.87,120.77,62.0]
[1741618182469,192.0,120.88,120.78,57.00423942]
[1741618182760,8.2733,120.88,120.82,8.2772]
[1741618182965,57.00423942,120.89,120.79,60.16]
[1741618183161,57.00423942,120.89,120.82,0.05667829]
[1741618183162,0.05616761,120.84,120.82,0.05667829]
[1741618183467,57.00423942,120.89,120.82,0.05667829]
[1741618183854,0.05313747,120.84,120.82,0.05667829]
[1741618184164,249.00423942,120.91,120.82,0.05667829]
[1741618184667,249.00423942,120.91,120.82,2.48]
[1741618184858,249.00423942,120.91,120.85,0.05360935]
[1741618185462,8.2722,120.9,120.85,0.05360935]
[1741618185659,8.2722,120.9,120.85,62.05360935]
[1741618185858,57.00423942,120.92,120.85,62.0]
[1741618186059,0.05368283,120.89,120.86,0.06361886]
[1741618186260,0.05368283,120.89,120.86,4.41961886]
[1741618186462,57.00423942,120.97,120.86,61.36023942]
[1741618186662,1.898e-05,120.89,120.88,57.00423942]
[1741618186861,1.898e-05,120.89,120.88,60.12]
[1741618187062,8.2708,120.92,120.87,68.3935]
[1741618187262,57.00423942,120.97,120.87,60.12]
[1741618187966,0.06072794,120.93,120.91,0.05347381]
[1741618189365,0.06072794,120.93,120.91,60.17347381]
[1741618189962,192.0,120.99,120.91,60.17347381]
[1741618190165,61.36293942,121.01,120.91,60.17347381]
[1741618190358,8.2685,120.96,120.91,68.3912]
[1741618190564,57.00423942,120.99,120.91,60.12]
[1741618190766,57.00423942,120.97,120.88,273.24]
[1741618191277,0.06330933,120.94,120.91,0.06087934]
[1741618192072,192.0,121.03,120.92,117.08423942]
[1741618192271,117.08423942,121.05,120.92,117.08423942]
[1741618192578,8.264,121.02,120.98,8.2664]
[1741618192780,57.00423942,121.09,120.98,57.00423942]
[1741618192977,8.2605,121.07,121.02,8.2631]
[1741618193179,8.2605,121.07,120.98,57.00423942]
[1741618193380,0.05761863,121.05,121.02,0.05526013]
[1741618193583,8.2626,121.04,121.02,0.05526013]
[1741618193789,57.00423942,121.03,120.94,60.08]
[1741618194180,117.08423942,121.03,120.93,273.04]
[1741618194383,57.00423942,121.01,120.93,273.04]
[1741618194774,117.08423942,121.03,120.93,273.04]
[1741618195279,0.0594313,120.99,120.97,0.06278209]
[1741618195985,8.1465,121.06,120.97,0.06278209]
[1741618196189,8.1465,121.06,120.98,62.0]
[1741618196390,117.04423942,121.07,120.98,62.0]
[1741618196890,8.2653,121.0,120.95,68.3082]
[1741618197188,57.00423942,121.03,121.01,0.05436012]
[1741618197390,57.00423942,121.03,120.94,4.2079]
[1741618197984,57.00423942,121.05,120.94,4.2079]
[1741618198191,117.04423942,121.05,120.94,4.2079]
[1741618198393,57.00423942,121.03,120.94,4.2079]
[1741618198778,0.0569344,121.01,120.98,0.06097523]
[1741618198979,0.0569344,121.01,120.98,8.32717523]
[1741618199292,0.0569344,121.01,120.98,0.06097523]
[1741618199488,0.0569344,121.01,120.99,8.2656]
[1741618199691,0.0569344,121.01,120.98,0.06097523]
[1741618199896,0.0569344,121.01,120.99,62.0]
[1741618200086,0.0569344,121.01,121.0,8.2651]
[1741618200293,117.02423942,121.09,120.99,62.0]
[1741618200497,60.02,121.09,121.0,57.00423942]
[1741618200790,117.02423942,121.09,121.0,272.86]
[1741618201187,57.00423942,121.11,121.0,329.86423942]
[1741618201393,0.0576727,121.06,121.03,0.06004912]
[1741618201592,8.2623,121.04,121.03,0.06004912]
[1741618201791,0.0576727,121.06,121.0,272.86]
[1741618201990,0.0576727,121.06,121.03,0.05585668]
[1741618202195,8.2623,121.04,121.03,0.05585668]
[1741618202797,60.0,121.04,120.95,272.78]
[1741618202997,57.00423942,121.01,120.92,4.1113]
[1741618203395,60.0,121.04,120.94,57.00423942]
[1741618203586,57.00423942,121.03,120.93,64.0504]
[1741618203790,57.00423942,121.01,120.93,64.0504]
[1741618203987,0.05240931,120.99,120.97,0.05332024]
[1741618204490,8.2664,120.98,120.97,0.05332024]
[1741618204898,60.0,120.98,120.87,4.0768]
[1741618205101,57.00423942,120.95,120.87,4.0768]
[1741618205291,57.00423942,120.95,120.87,66.0768]
[1741618205597,57.00423942,120.97,120.87,66.0768]
[1741618205902,57.00423942,120.95,120.87,66.0768]
[1741618206193,57.05929243,120.93,120.85,4.013]
[1741618206392,57.05929243,120.93,120.83,272.78]
[1741618206393,57.00423942,120.91,120.83,272.78]
[1741618206792,57.00423942,120.89,120.8,4.013]
[1741618206987,8.2787,120.81,120.79,4.0768]
[1741618207192,57.00423942,120.87,120.79,4.0768]
[1741618207392,0.05402379,120.81,120.79,4.13288442]
[1741618207594,61.26763942,120.91,120.8,61.30773942]
[1741618207794,64.3012,120.92,120.81,60.0]
[1741618207996,57.00423942,120.89,120.81,64.0242]
[1741618208598,8.2726,120.89,120.81,121.02843942]
[1741618208795,0.06329337,120.86,120.84,0.0609791]
[1741618209191,57.00423942,120.89,120.82,62.0]
[1741618209391,0.0627371,120.86,120.84,0.05920079]
[1741618211398,57.00423942,120.93,120.84,2.53920079]
[1741618211596,57.00423942,120.93,120.83,57.00423942]
[1741618211900,59.98,120.94,120.85,8.2748]
[1741618212101,59.98,120.94,120.83,57.00423942]
[1741618212401,57.00423942,120.95,120.83,57.00423942]
[1741618212604,0.05798063,120.9,120.87,0.06110667]
[1741618212798,0.05798063,120.9,120.85,8.2747]
[1741618212998,57.00423942,120.93,120.87,0.06242982]
[1741618213203,0.05550647,120.89,120.87,0.06242982]
[1741618213495,117.00423942,120.95,120.87,0.06242982]
[1741618213690,117.00423942,120.95,120.85,8.2751]
[1741618213691,0.05803056,120.89,120.85,329.86423942]
[1741618213889,117.00423942,120.95,120.9,0.0589179]
[1741618214090,57.00423942,120.93,120.84,62.0]
[1741618214305,57.00423942,120.91,120.84,62.0]
[1741618214508,57.00423942,120.91,120.87,0.06194117]
[1741618214707,0.06192984,120.89,120.87,0.06194117]
[1741618215100,8.2733,120.88,120.87,0.06194117]
[1741618215413,57.06616926,120.89,120.8,272.86]
[1741618215709,57.00423942,120.87,120.8,272.86]
[1741618216000,57.00423942,120.85,120.75,272.9]
[1741618216213,57.00423942,120.81,120.69,121.32553942]
[1741618216595,8.33673683,120.76,120.74,0.05361191]
[1741618216795,0.05473683,120.76,120.74,0.05361191]
[1741618216993,117.00423942,120.79,120.69,60.0]
[1741618217200,57.00423942,120.75,120.65,4.1811]
[1741618217400,57.00423942,120.75,120.66,63.49781299]
[1741618217712,57.00423942,120.78,120.67,57.00423942]
[1741618217899,57.00423942,120.74,120.66,62.0]
[1741618218095,57.00423942,120.72,120.66,62.0]
[1741618218300,0.0636491,120.71,120.69,0.05622527]
[1741618219006,57.00423942,120.7,120.59,61.18533942]
[1741618219207,0.0636491,120.71,120.59,61.18533942]
[1741618219405,57.00423942,120.72,120.59,61.18533942]
[1741618219406,117.00423942,120.74,120.61,57.00423942]
[1741618219599,117.00423942,120.74,120.63,57.00423942]
[1741618219801,57.00423942,120.7,120.59,61.18533942]
[1741618220001,0.06024358,120.7,120.67,0.06294631]
[1741618220408,8.2883,120.67,120.59,61.18533942]
[1741618220598,0.05880094,120.7,120.59,61.18533942]
[1741618220801,8.288,120.67,120.62,0.06302668]
[1741618221009,0.06319094,120.66,120.62,0.06302668]
[1741618221211,0.06319094,120.66,120.59,121.20533942]
[1741618221404,0.06319094,120.66,120.63,57.06675326]
[1741618221604,117.00423942,120.74,120.64,60.02]
[1741618221805,4.3469,120.75,120.65,119.00423942]
[1741618222316,68.3841,120.77,120.65,119.00423942]
[1741618222317,4.2974,120.77,120.69,57.00423942]
[1741618222514,117.02423942,120.8,120.69,117.02423942]
[1741618222711,117.02423942,120.8,120.69,60.02]
[1741618223007,0.05853644,120.76,120.73,0.06286931]
[1741618224416,4.006,120.82,120.74,60.04]
[1741618224608,4.006,120.82,120.75,57.00423942]
[1741618224915,4.006,120.82,120.74,64.0193]
[1741618225113,57.00423942,120.85,120.75,57.00423942]
[1741618225317,57.00423942,120.85,120.74,64.0193]
[1741618225318,4.006,120.88,120.79,57.00423942]
[1741618225507,8.2747,120.86,120.8,70.2788]
[1741618225715,4.006,120.88,120.8,62.0]
[1741618225904,64.046,120.88,120.8,62.0]
[1741618226105,8.2778,120.82,120.8,62.0]
[1741618226306,57.00423942,120.85,120.76,273.18]
[1741618226507,57.00423942,120.83,120.74,3.9793]
[1741618226707,57.00423942,120.81,120.79,0.0592355]
[1741618226908,0.05742283,120.82,120.79,0.0592355]
[1741618227217,0.05742283,120.82,120.71,8.2845]
[1741618227414,4.35512283,120.82,120.7,64.3833]
[1741618227609,8.2796,120.79,120.71,57.00423942]
[1741618227809,4.2977,120.82,120.73,57.00423942]
[1741618228008,57.00423942,120.81,120.71,57.00423942]
[1741618228316,57.00423942,120.81,120.7,64.3833]
[1741618228509,0.06002624,120.77,120.75,0.0565679]
[1741618228706,8.2815,120.76,120.75,0.0565679]
[1741618229102,0.05601201,120.77,120.75,0.0565679]
[1741618230010,57.00423942,120.76,120.67,273.18]
[1741618230218,57.00423942,120.74,120.66,12.516]
[1741618230515,60.09601201,120.77,120.66,12.516]
[1741618230516,57.00423942,120.76,120.66,4.2278]
[1741618230809,8.287,120.68,120.66,4.2278]
[1741618231013,57.00423942,120.74,120.66,4.2278]
[1741618231217,0.06263613,120.68,120.66,4.28522365]
[1741618231516,57.00423942,120.74,120.66,4.2278]
[1741618231704,0.06225907,120.68,120.66,4.28630858]
[1741618231906,57.00423942,120.74,120.66,4.2278]
[1741618232108,0.06215272,120.68,120.66,4.28149716]
[1741618232406,0.06215272,120.68,120.63,60.04]
[1741618232407,117.04423942,120.72,120.62,273.18]
[1741618232611,60.04,120.72,120.66,0.05519752]
[1741618232808,117.04423942,120.76,120.66,60.09519752]
[1741618233012,117.04423942,120.76,120.67,62.0]
[1741618233204,57.00423942,120.74,120.62,330.18423942]
[1741618233417,8.287,120.69,120.64,8.2893]
[1741618233805,4.0387,120.75,120.64,57.00423942]
[1741618234009,117.04423942,120.76,120.66,57.00423942]
[1741618234010,60.04,120.76,120.66,57.00423942]
[1741618234216,0.0550096,120.71,120.68,57.06711199]
[1741618234416,4.0387,120.79,120.69,4.0124]
[1741618234718,57.00423942,120.78,120.69,4.0124]
[1741618235110,4.0387,120.79,120.69,4.0124]
[1741618235520,57.00423942,120.78,120.69,4.0124]
[1741618235821,0.0594746,120.75,120.73,0.06051725]
[1741618236116,61.17903942,120.8,120.73,0.06051725]
[1741618236323,8.2829,120.74,120.73,62.06051725]
[1741618236814,0.05400911,120.75,120.73,62.06051725]
[1741618237210,60.02,120.81,120.73,62.06051725]
[1741618237417,8.2798,120.79,120.75,8.2818]
[1741618237616,0.06337988,120.78,120.73,62.0]
[1741618237818,8.2808,120.77,120.76,0.05698701]
[1741618238517,57.0676193,120.78,120.69,277.2724]
[1741618238713,57.00423942,120.8,120.69,277.2724]
[1741618238917,60.02,120.81,120.69,334.27663942]